bitfinex-derivatives/quotes_BTCF0:USTF0_20250630
["timestamp","ask_amount","ask_price","bid_price","bid_amount"]
[1751292843445,0.002,107510.0,107500.0,2.04676548]
[1751292843649,0.002,107510.0,107500.0,2.419212]
[1751292843849,0.002,107510.0,107500.0,2.04676548]
[1751292844151,0.001,107540.0,107530.0,0.1859502]
[1751292844348,0.001,107540.0,107530.0,2.64631672]
[1751292844554,0.00502484,107560.0,107540.0,0.0464818]
[1751292844851,0.28388204,107560.0,107550.0,1.8243592]
[1751292845151,0.02697945,107560.0,107550.0,1.8243592]
[1751292845355,0.001,107570.0,107550.0,2.3711112]
[1751292845544,0.3618,107600.0,107570.0,0.0464665]
[1751292845545,0.05600213,107600.0,107570.0,0.0464665]
[1751292845846,0.24183133,107600.0,107590.0,0.91909292]
[1751292846050,0.001,107600.0,107590.0,0.91909292]
[1751292846261,0.001,107600.0,107590.0,0.99199292]
[1751292846464,0.001,107600.0,107590.0,0.0729]
[1751292846465,0.1868292,107600.0,107590.0,0.0729]
[1751292846654,0.1868292,107600.0,107590.0,1.4701064]
[1751292846855,0.1868292,107600.0,107590.0,0.24875051]
[1751292847059,2.05927572,107600.0,107590.0,0.89967051]
[1751292847365,2.05927572,107600.0,107590.0,0.001]
[1751292847366,2.56557572,107600.0,107590.0,0.001]
[1751292847658,2.66557572,107600.0,107590.0,0.15016]
[1751292847963,0.1858637,107580.0,107570.0,0.01502934]
[1751292848261,0.185881,107570.0,107560.0,0.0729]
[1751292848459,0.261881,107570.0,107560.0,0.82378]
[1751292848762,0.261881,107570.0,107560.0,0.0729]
[1751292849064,0.1858983,107560.0,107550.0,0.85267708]
[1751292849365,0.1858983,107560.0,107550.0,1.78967268]
[1751292849566,0.1858983,107560.0,107550.0,1.18799268]
[1751292849766,0.1858983,107560.0,107550.0,1.93959268]
[1751292849966,0.1858983,107560.0,107550.0,1.93967268]
[1751292850361,0.1858983,107560.0,107550.0,1.94467268]
[1751292850565,0.1858983,107560.0,107550.0,1.75875708]
[1751292850864,0.5466983,107560.0,107550.0,1.75859708]
[1751292851060,0.6234983,107560.0,107550.0,1.75859708]
[1751292851455,0.6234983,107560.0,107550.0,0.85767708]
[1751292851456,0.99594482,107560.0,107550.0,0.85767708]
[1751292851658,1.06964482,107560.0,107550.0,1.59344]
[1751292851860,1.06964482,107560.0,107550.0,0.84216]
[1751292852061,1.06964482,107560.0,107550.0,0.99132]
[1751292852262,1.56964482,107560.0,107550.0,0.99132]
[1751292853367,1.56964482,107560.0,107550.0,0.98732]
[1751292855660,1.56964482,107560.0,107550.0,0.15016]
[1751292855966,0.1859328,107540.0,107530.0,0.05652689]
[1751292856161,1.37997932,107540.0,107530.0,0.05652689]
[1751292856361,1.52477932,107540.0,107530.0,0.00092993]
[1751292857266,2.62729932,107540.0,107530.0,0.00092993]
[1751292857568,0.1859501,107530.0,107520.0,0.14916]
[1751292857770,1.06399662,107530.0,107520.0,0.14916]
[1751292858864,1.56399662,107530.0,107520.0,0.14916]
[1751292859467,1.56399662,107530.0,107520.0,0.15116]
[1751292860464,1.66399662,107530.0,107520.0,0.15116]
[1751292861868,1.2915501,107530.0,107520.0,0.15116]
[1751292862470,1.31297318,107530.0,107520.0,0.15116]
[1751292863473,1.21297318,107530.0,107520.0,0.15116]
[1751292863670,1.81441318,107530.0,107520.0,0.15116]
[1751292863973,1.91389318,107530.0,107520.0,0.15116]
[1751292864373,1.21297318,107530.0,107520.0,0.15116]
[1751292864571,1.81429318,107530.0,107520.0,0.15116]
[1751292864766,0.1859673,107520.0,107510.0,0.32716121]
[1751292865077,0.5467673,107520.0,107510.0,0.51313841]
[1751292865373,0.6169673,107520.0,107510.0,0.51313841]
[1751292865578,0.98941382,107520.0,107510.0,0.294]
[1751292865877,1.08941382,107520.0,107510.0,0.294]
[1751292866174,1.16371382,107520.0,107510.0,0.298]
[1751292866472,1.06371382,107520.0,107510.0,0.298]
[1751292866670,0.6912673,107520.0,107510.0,0.298]
[1751292866872,1.06371382,107520.0,107510.0,0.298]
[1751292868073,1.16371382,107520.0,107510.0,0.2269]
[1751292868270,1.16371382,107520.0,107510.0,0.004]
[1751292868477,1.06371382,107520.0,107510.0,0.15356]
[1751292869869,1.56371382,107520.0,107510.0,0.15356]
[1751292870672,1.66371382,107520.0,107510.0,0.15356]
[1751292871076,1.56371382,107520.0,107510.0,0.15356]
[1751292872678,1.16371382,107520.0,107510.0,0.004]
[1751292872880,1.16371382,107520.0,107510.0,0.15356]
[1751292874077,1.66371382,107520.0,107510.0,0.15356]
[1751292874277,1.56371382,107520.0,107510.0,0.15356]
[1751292875477,1.66371382,107520.0,107510.0,0.15356]
[1751292875781,1.66371382,107520.0,107510.0,0.004]
[1751292875981,1.66371382,107520.0,107510.0,0.15356]
[1751292876184,1.58518873,107520.0,107510.0,0.15356]
[1751292876679,1.68518873,107520.0,107510.0,0.004]
[1751292876887,1.68518873,107520.0,107510.0,0.15356]
[1751292877879,1.66371382,107520.0,107510.0,0.15356]
[1751292878274,1.56371382,107520.0,107510.0,0.15356]
[1751292878681,1.56371382,107520.0,107510.0,0.22346]
[1751292880386,1.41921382,107520.0,107510.0,0.22346]
[1751292880590,1.41921382,107520.0,107510.0,0.29776]
[1751292880885,0.94070571,107520.0,107510.0,0.4837447]
[1751292881080,0.94070571,107520.0,107510.0,0.29776]
[1751292881277,0.94070645,107520.0,107510.0,0.29776]
[1751292881681,0.94070645,107520.0,107510.0,0.4837447]
[1751292881983,0.94070645,107520.0,107510.0,0.29776]
[1751292882383,0.91921382,107520.0,107510.0,0.29776]
[1751292882786,1.04071014,107520.0,107510.0,0.1482]
[1751292882991,1.04071014,107520.0,107510.0,0.29776]
[1751292883193,0.94071014,107520.0,107510.0,0.1482]
[1751292883388,0.57991014,107520.0,107510.0,0.29776]
[1751292883588,0.94071014,107520.0,107510.0,0.29776]
[1751292885391,0.91921382,107520.0,107510.0,0.29776]
[1751292886389,0.94075057,107520.0,107510.0,0.29776]
[1751292888385,0.56830405,107520.0,107510.0,0.4837447]
[1751292888885,0.94075057,107520.0,107510.0,0.4837447]
[1751292889792,0.56830405,107520.0,107510.0,0.4837447]
[1751292889994,0.20750405,107520.0,107510.0,0.8445447]
[1751292890388,0.02153675,107520.0,107510.0,0.8445447]
[1751292890587,0.02153675,107520.0,107510.0,1.21699122]
[1751292890788,0.02153675,107520.0,107510.0,1.27258818]
[1751292892091,0.02153675,107520.0,107510.0,1.70861218]
[1751292892293,0.3254061,107540.0,107530.0,0.1859501]
[1751292892489,0.30050583,107540.0,107530.0,1.308216]
[1751292892693,0.30050583,107540.0,107530.0,1.453716]
[1751292893097,0.30050583,107540.0,107530.0,1.092916]
[1751292893691,0.30050583,107540.0,107530.0,1.453716]
[1751292895893,0.25401963,107540.0,107530.0,1.453716]
[1751292896288,0.02158643,107540.0,107530.0,1.453716]
[1751292896489,0.02158643,107540.0,107530.0,2.85720248]
[1751292896693,0.02158643,107540.0,107530.0,2.67121849]
[1751292897095,0.02158643,107540.0,107530.0,2.29853197]
[1751292897300,0.1859328,107540.0,107530.0,2.29853197]
[1751292898193,1.16061112,107560.0,107550.0,0.1859155]
[1751292898393,0.2788646,107560.0,107550.0,1.2900355]
[1751292898596,0.2788646,107560.0,107550.0,1.4427355]
[1751292898797,0.67292587,107560.0,107550.0,1.0819355]
[1751292899103,0.30047935,107560.0,107550.0,1.0819355]
[1751292899302,0.67292587,107560.0,107550.0,1.0819355]
[1751292900805,0.67692587,107560.0,107550.0,1.0819355]
[1751292901394,0.30447935,107560.0,107550.0,1.15451687]
[1751292901595,0.02561475,107560.0,107550.0,1.88776339]
[1751292901800,0.004,107560.0,107550.0,1.88776339]
[1751292902400,0.001,107570.0,107560.0,0.1858983]
[1751292902605,0.186881,107570.0,107560.0,1.07304482]
[1751292902803,0.186881,107570.0,107560.0,0.7005983]
[1751292903101,0.186881,107570.0,107560.0,1.0830782]
[1751292903306,0.186881,107570.0,107560.0,1.4438782]
[1751292903700,0.001,107570.0,107560.0,1.81632472]
[1751292903900,0.005,107570.0,107560.0,1.87196556]
[1751292904504,0.005,107570.0,107560.0,2.05790156]
[1751292904710,0.005,107570.0,107560.0,2.15790156]
[1751292905103,0.005,107570.0,107560.0,2.10226072]
[1751292905409,0.005,107570.0,107560.0,2.15790156]
[1751292905604,0.005,107570.0,107560.0,2.22960156]
[1751292905812,0.190881,107570.0,107560.0,2.17396072]
[1751292907008,0.005,107570.0,107560.0,2.42380072]
[1751292911108,0.005,107570.0,107560.0,1.39193472]
[1751292911306,0.005,107570.0,107560.0,0.7724482]
[1751292911506,0.005,107570.0,107560.0,1.5154882]
[1751292912810,0.005,107570.0,107560.0,0.7724482]
[1751292913001,0.190881,107570.0,107560.0,1.1546482]
[1751292913205,0.190881,107570.0,107560.0,1.5154482]
[1751292913609,0.56332752,107570.0,107560.0,1.3672482]
[1751292913811,0.1506,107570.0,107560.0,1.3672482]
[1751292914012,0.0798,107570.0,107560.0,1.4397482]
[1751292914315,0.265681,107570.0,107560.0,1.4397482]
[1751292915213,0.336481,107570.0,107560.0,1.4397482]
[1751292915816,0.1506,107570.0,107560.0,1.4397482]
[1751292916415,0.005,107570.0,107560.0,1.4397482]
[1751292916618,0.005,107570.0,107560.0,1.81219472]
[1751292916816,0.005,107570.0,107560.0,1.4397482]
[1751292917016,0.005,107570.0,107560.0,1.81219472]
[1751292919418,0.005,107570.0,107560.0,1.99813072]
[1751292919613,0.005,107570.0,107560.0,1.81219472]
[1751292919822,0.005,107570.0,107560.0,1.99813072]
[1751292921121,1e-07,107570.0,107560.0,1.99813072]
[1751292921416,1e-07,107570.0,107560.0,2.34987704]
[1751292921623,1e-07,107570.0,107560.0,2.59987704]
[1751292922221,0.001,107600.0,107590.0,0.1858464]
[1751292922424,0.001,107600.0,107590.0,2.85961292]
[1751292922623,0.001,107600.0,107590.0,3.07881292]
[1751292922925,0.001,107600.0,107590.0,3.03181292]
[1751292923725,0.009,107600.0,107590.0,3.03181292]
[1751292924626,0.009,107600.0,107590.0,3.03967711]
[1751292925631,0.1948291,107600.0,107590.0,3.03967711]
[1751292925832,0.009,107600.0,107590.0,3.03967711]
[1751292926026,0.009,107600.0,107590.0,2.66723059]
[1751292926228,0.009,107600.0,107590.0,3.03967711]
[1751292926436,0.009,107600.0,107590.0,3.19497866]
[1751292930625,0.009,107600.0,107590.0,3.14797866]
[1751292932635,0.009,107600.0,107590.0,3.33385866]
[1751292932837,0.009,107600.0,107590.0,3.62985866]
[1751292933435,0.009,107600.0,107590.0,3.27616495]
[1751292933638,0.009,107600.0,107590.0,3.38859711]
[1751292933831,0.009,107600.0,107590.0,3.3327268]
[1751292934041,0.009,107600.0,107590.0,2.6453825]
[1751292934338,0.1948293,107600.0,107590.0,3.3902625]
[1751292934536,0.009,107600.0,107590.0,3.2902625]
[1751292935038,0.009,107600.0,107590.0,3.2901825]
[1751292935828,0.009,107600.0,107590.0,3.34459211]
[1751292936032,0.009,107600.0,107590.0,2.59979211]
[1751292936226,0.009,107600.0,107590.0,3.34459211]
[1751292936627,0.009,107600.0,107590.0,3.04859211]
[1751292937033,0.009,107600.0,107590.0,3.14855211]
[1751292937443,0.009,107600.0,107590.0,3.33443211]
[1751292937641,0.009,107600.0,107590.0,3.27893641]
[1751292937838,0.40555482,107630.0,107620.0,0.1857948]
[1751292938042,0.40554332,107630.0,107620.0,1.66258062]
[1751292938340,0.40554332,107630.0,107620.0,0.8837948]
[1751292938641,0.45205332,107630.0,107620.0,0.8837948]
[1751292938943,0.45205332,107630.0,107620.0,1.2445948]
[1751292939143,0.82303914,107630.0,107620.0,1.2445948]
[1751292939448,1.18383914,107630.0,107620.0,0.8837948]
[1751292939743,0.1857948,107620.0,107610.0,0.3251517]
[1751292940041,0.1857948,107620.0,107610.0,1.4310317]
[1751292940042,0.3274948,107620.0,107610.0,1.4310317]
[1751292941044,0.3274948,107620.0,107610.0,0.6859517]
[1751292941241,0.3274948,107620.0,107610.0,1.4309917]
[1751292941645,0.3274948,107620.0,107610.0,1.5001917]
[1751292941839,0.3274948,107620.0,107610.0,1.4309917]
[1751292942441,0.3274948,107620.0,107610.0,1.0701917]
[1751292942641,0.3273448,107620.0,107610.0,0.4720717]
[1751292942843,0.69833062,107620.0,107610.0,0.1857999]
[1751292943146,0.3273448,107620.0,107610.0,0.9316799]
[1751292943445,0.3273448,107620.0,107610.0,0.14692]
[1751292943446,1.10564062,107620.0,107610.0,0.14692]
[1751292943744,0.3251814,107610.0,107600.0,0.1858157]
[1751292943945,0.91136722,107610.0,107600.0,0.9315757]
[1751292944145,0.5403814,107610.0,107600.0,0.1858157]
[1751292944347,0.91136722,107610.0,107600.0,0.9315757]
[1751292944647,0.91136722,107610.0,107600.0,0.9315357]
[1751292944849,0.1858292,107600.0,107590.0,1.57828462]
[1751292945148,0.3303292,107600.0,107590.0,1.96308462]
[1751292945345,0.3303292,107600.0,107590.0,2.32388462]
[1751292945550,0.3303292,107600.0,107590.0,1.96312462]
[1751292946160,0.3303292,107600.0,107590.0,1.17048462]
[1751292946342,0.3303292,107600.0,107590.0,1.27094402]
[1751292946544,0.3303292,107600.0,107590.0,1.86954402]
[1751292946852,0.3343292,107600.0,107590.0,1.86954402]
[1751292947249,0.3343292,107600.0,107590.0,2.23034402]
[1751292949055,0.1485,107600.0,107590.0,2.54585422]
[1751292949353,0.004,107600.0,107590.0,2.76238858]
[1751292949537,0.004,107600.0,107590.0,2.8812576]
[1751292949742,0.004,107600.0,107590.0,2.86395422]
[1751292949938,0.004,107600.0,107590.0,2.9569576]
[1751292951748,0.004,107600.0,107590.0,2.86395422]
[1751292953950,0.004,107600.0,107590.0,2.81695422]
[1751292954152,0.004,107600.0,107590.0,3.00283422]
[1751292954452,0.004,107600.0,107590.0,3.29883422]
[1751292954640,0.004,107600.0,107590.0,3.00283422]
[1751292955140,1e-07,107600.0,107590.0,2.55331422]
[1751292955343,1e-07,107600.0,107590.0,3.30019422]
[1751292957648,1e-07,107600.0,107590.0,3.55019422]
[1751292957851,1e-07,107600.0,107590.0,3.81217306]
[1751292958553,1e-07,107600.0,107590.0,3.49569073]
[1751292959148,1e-07,107600.0,107590.0,3.24569073]
[1751292960750,0.50231183,107600.0,107590.0,2.1454484]
[1751292960956,0.1858294,107600.0,107590.0,1.9974484]
[1751292961157,0.73712083,107610.0,107600.0,0.1858296]
[1751292961452,0.73712083,107610.0,107600.0,0.20082661]
[1751292961653,0.73712083,107610.0,107600.0,0.81074661]
[1751292961853,0.4206385,107610.0,107600.0,1.17150661]
[1751292962247,0.4206385,107610.0,107600.0,0.95958661]
[1751292962443,0.4206385,107610.0,107600.0,0.34982661]
[1751292962648,1.15252981,107610.0,107600.0,0.77363701]
[1751292962849,0.7814385,107610.0,107600.0,0.95938661]
[1751292963049,1.15252981,107610.0,107600.0,0.95938661]
[1751292963251,1.15252981,107610.0,107600.0,0.77355701]
[1751292963552,1.15252981,107610.0,107600.0,0.95938661]
[1751292963746,0.7814385,107610.0,107600.0,0.95938661]
[1751292963951,0.7814385,107610.0,107600.0,0.01499701]
[1751292964153,1.15252981,107610.0,107600.0,0.77339701]
[1751292964448,1.15252981,107610.0,107600.0,0.16399701]
[1751292964654,1.15252981,107610.0,107600.0,0.77327701]
[1751292964857,0.7814385,107610.0,107600.0,0.77327701]
[1751292965356,0.7814385,107610.0,107600.0,0.95910661]
[1751292966258,0.7814385,107610.0,107600.0,0.77327701]
[1751292966457,0.7814385,107610.0,107600.0,0.77263701]
[1751292966658,0.7814385,107610.0,107600.0,0.77251701]
[1751292967051,0.7814385,107610.0,107600.0,0.95834661]
[1751292969358,0.7814385,107610.0,107600.0,0.96534661]
[1751292970462,0.4206385,107610.0,107600.0,1.69723792]
[1751292970656,0.4206385,107610.0,107600.0,1.32614661]
[1751292970856,0.4206385,107610.0,107600.0,1.69723792]
[1751292971764,0.4206385,107610.0,107600.0,1.32614661]
[1751292972760,0.4206385,107610.0,107600.0,0.96534661]
[1751292972961,0.4206385,107610.0,107600.0,1.32614661]
[1751292974171,0.3513062,107620.0,107610.0,0.1858124]
[1751292974360,0.3513062,107620.0,107610.0,0.98880371]
[1751292974555,0.3048537,107620.0,107610.0,1.05850371]
[1751292975866,0.2584047,107620.0,107610.0,1.05850371]
[1751292977265,0.1858047,107620.0,107610.0,1.05850371]
[1751292977761,0.49774652,107630.0,107620.0,0.1857951]
[1751292977961,0.49774652,107630.0,107620.0,1.81708641]
[1751292978259,0.00596572,107630.0,107620.0,1.81708641]
[1751292978469,0.19174352,107630.0,107620.0,1.81708641]
[1751292980772,0.00596572,107630.0,107620.0,1.82008641]
[1751292981067,0.19174352,107630.0,107620.0,1.83528995]
[1751292981864,0.19174352,107630.0,107620.0,1.78063024]
[1751292982167,0.26164553,107660.0,107650.0,0.1857433]
[1751292982465,0.54590639,107660.0,107650.0,1.0387093]
[1751292982662,1.08283799,107660.0,107650.0,1.7921493]
[1751292982858,1.08283799,107660.0,107650.0,1.7921093]
[1751292983063,0.40560639,107660.0,107650.0,1.7921093]
[1751292983364,0.2321485,107670.0,107660.0,0.1857261]
[1751292983562,0.2785556,107680.0,107670.0,0.1857088]
[1751292983766,0.4993556,107680.0,107670.0,1.2999088]
[1751292984067,0.4993556,107680.0,107670.0,1.30040526]
[1751292984267,0.4993556,107680.0,107670.0,0.93960526]
[1751292985466,0.4265556,107680.0,107670.0,1.61683686]
[1751292985668,0.2321296,107680.0,107670.0,1.76063686]
[1751292985875,0.5039332,107690.0,107680.0,0.1856915]
[1751292986169,0.5039332,107690.0,107680.0,0.8629231]
[1751292986370,0.5039332,107690.0,107680.0,1.01171956]
[1751292987072,0.5039332,107690.0,107680.0,0.65091956]
[1751292987272,0.5039332,107690.0,107680.0,0.18618796]
[1751292987467,0.5039332,107690.0,107680.0,0.50261956]
[1751292987670,0.5039332,107690.0,107680.0,0.86341956]
[1751292987870,0.5039332,107690.0,107680.0,0.99204828]
[1751292988173,0.5039332,107690.0,107680.0,0.69528796]
[1751292988674,0.5039332,107690.0,107680.0,0.33448796]
[1751292988873,0.2795332,107690.0,107680.0,0.69528796]
[1751292989074,0.2795332,107690.0,107680.0,1.06574828]
[1751292989776,0.2795332,107690.0,107680.0,1.09076796]
[1751292990377,0.3531332,107690.0,107680.0,1.09076796]
[1751292990675,0.4281332,107690.0,107680.0,1.09076796]
[1751292990971,0.4281332,107690.0,107680.0,0.33448796]
[1751292991176,0.4281332,107690.0,107680.0,1.09020796]
[1751292991372,0.4281332,107690.0,107680.0,1.45100796]
[1751292991577,0.4281332,107690.0,107680.0,0.18618796]
[1751292991875,0.4281332,107690.0,107680.0,0.94166796]
[1751292992176,0.4281332,107690.0,107680.0,0.18618796]
[1751292992472,0.4281332,107690.0,107680.0,0.94222796]
[1751292992676,0.4281332,107690.0,107680.0,1.30302796]
[1751292992876,0.4281332,107690.0,107680.0,0.18618796]
[1751292993078,0.4281332,107690.0,107680.0,0.94186796]
[1751292993468,1.15939352,107690.0,107680.0,0.00049646]
[1751292993868,1.25939352,107690.0,107680.0,0.75597646]
[1751292994079,1.15939352,107690.0,107680.0,0.75597646]
[1751292994478,1.15939352,107690.0,107680.0,0.15217646]
[1751292994680,0.185709,107670.0,107660.0,0.3685]
[1751292994976,0.546509,107670.0,107660.0,1.05112]
[1751292995173,0.5071,107670.0,107650.0,1.54510294]
[1751292995374,0.5465262,107660.0,107650.0,0.85209776]
[1751292995569,0.6880262,107660.0,107650.0,1.00377776]
[1751292995777,0.76440515,107660.0,107650.0,1.60734252]
[1751292995976,0.76440515,107660.0,107650.0,1.00386252]
[1751292996176,0.76440515,107660.0,107650.0,0.85218252]
[1751292996378,0.76440515,107660.0,107650.0,1.00386252]
[1751292996575,0.185778,107630.0,107620.0,0.01613269]
[1751292996773,0.91803124,107630.0,107620.0,0.01464444]
[1751292996972,0.33307092,107630.0,107620.0,0.34564435]
[1751292997183,0.33307092,107630.0,107620.0,0.15984915]
[1751292997580,0.69387092,107630.0,107620.0,0.15995108]
[1751292998175,0.69387092,107630.0,107620.0,0.00103108]
[1751292998375,0.26307092,107630.0,107620.0,1.04484628]
[1751292998576,0.26307092,107630.0,107620.0,1.48104628]
[1751292998577,0.18677092,107630.0,107620.0,1.48104628]
[1751292998778,0.18677092,107630.0,107620.0,1.8515066]
[1751292998973,0.00099292,107630.0,107620.0,1.8515066]
[1751292999279,0.00099292,107630.0,107620.0,1.8513066]
[1751293000082,0.18677082,107630.0,107620.0,1.8593066]
[1751293001688,0.00099292,107630.0,107620.0,1.8593066]
[1751293001883,0.18677082,107630.0,107620.0,1.8593066]
[1751293003080,0.00099292,107630.0,107620.0,1.8593066]
[1751293003281,0.18677082,107630.0,107620.0,1.8593066]
[1751293003481,0.00099292,107630.0,107620.0,1.8593066]
[1751293003677,0.00099292,107630.0,107620.0,2.2093066]
[1751293004194,0.00099292,107630.0,107620.0,1.9593066]
[1751293004389,0.00099292,107630.0,107620.0,1.58676628]
[1751293004792,0.23225125,107660.0,107650.0,0.1857434]
[1751293004992,0.27682592,107660.0,107650.0,1.33963664]
[1751293005191,0.27682592,107660.0,107650.0,1.48513664]
[1751293005394,0.27682592,107660.0,107650.0,1.11467632]
[1751293005590,0.27682592,107660.0,107650.0,1.47547632]
[1751293005990,0.23039122,107660.0,107650.0,1.47547632]
[1751293006187,0.18403942,107660.0,107650.0,1.47547632]
[1751293006392,8.14e-05,107660.0,107650.0,1.84893664]
[1751293006591,8.14e-05,107660.0,107650.0,2.68513664]
[1751293007991,8.14e-05,107660.0,107650.0,2.76113664]
[1751293009691,8.14e-05,107660.0,107650.0,2.39067632]
[1751293009891,0.1858075,107660.0,107650.0,2.38919632]
[1751293010097,0.1858075,107660.0,107650.0,2.31319632]
[1751293010298,0.2595075,107660.0,107650.0,2.31319632]
[1751293010694,0.1858075,107660.0,107650.0,2.31319632]
[1751293012104,0.5466075,107660.0,107650.0,1.95239632]
[1751293012301,0.5466075,107660.0,107650.0,1.14461292]
[1751293012599,1.08877224,107660.0,107650.0,1.62003292]
[1751293012987,1.62454824,107660.0,107650.0,0.99911292]
[1751293013191,1.37454824,107660.0,107650.0,0.99911292]
[1751293013792,1.87454824,107660.0,107650.0,0.99911292]
[1751293014700,1.85184382,107660.0,107650.0,0.99911292]
[1751293015195,1.85184382,107660.0,107650.0,0.00399292]
[1751293015400,2.12453217,107660.0,107650.0,0.00399292]
[1751293015607,2.12453217,107660.0,107620.0,0.00103108]
[1751293015608,0.0464358,107650.0,107620.0,0.00103108]
[1751293015894,0.78688142,107640.0,107630.0,0.15705997]
[1751293016100,1.04768142,107640.0,107630.0,0.15705997]
[1751293016297,0.1857779,107630.0,107620.0,0.18682628]
[1751293016492,0.6977779,107630.0,107620.0,0.78011108]
[1751293016698,0.69802613,107630.0,107620.0,0.78011108]
[1751293016901,1.06873468,107630.0,107620.0,0.78511108]
[1751293017397,1.06873468,107630.0,107620.0,0.16495108]
[1751293017597,1.06873468,107630.0,107620.0,0.78779108]
[1751293017797,1.06873468,107630.0,107620.0,0.97358618]
[1751293018097,0.69827436,107630.0,107620.0,0.97358618]
[1751293022498,0.69827436,107630.0,107620.0,0.00903108]
[1751293022705,0.69827436,107630.0,107620.0,0.97110618]
[1751293023203,0.33747436,107630.0,107620.0,0.97110618]
[1751293023405,0.33757375,107630.0,107620.0,0.97110618]
[1751293023597,0.18637375,107630.0,107620.0,1.3415665]
[1751293023793,0.18637375,107630.0,107620.0,1.4908665]
[1751293024012,0.18637375,107630.0,107620.0,1.9220665]
[1751293024502,0.18637375,107630.0,107620.0,1.5612665]
[1751293024696,0.18637375,107630.0,107620.0,1.19080618]
[1751293025808,0.91763407,107630.0,107620.0,0.00903108]
[1751293026002,1.13683407,107630.0,107620.0,0.00903108]
[1751293027008,1.23683407,107630.0,107620.0,0.00903108]
[1751293029112,1.25947739,107630.0,107620.0,0.00903108]
[1751293029604,1.15947739,107630.0,107620.0,0.00903108]
[1751293030008,1.65947739,107630.0,107620.0,0.00903108]
[1751293030507,1.65947739,107630.0,107620.0,0.19482628]
[1751293030697,1.65947739,107630.0,107620.0,0.00903108]
[1751293031312,1.65944531,107630.0,107620.0,0.00903108]
[1751293031516,1.65944531,107630.0,107620.0,0.19482628]
[1751293031717,0.92818499,107630.0,107620.0,0.19482628]
[1751293032012,0.90557375,107630.0,107620.0,0.26882628]
[1751293032216,0.90557375,107630.0,107620.0,0.34522628]
[1751293032416,0.40557375,107630.0,107620.0,0.34522628]
[1751293033615,1.13683407,107630.0,107620.0,0.15943108]
[1751293033806,0.76637375,107630.0,107620.0,0.15943108]
[1751293034113,1.13683407,107630.0,107620.0,0.34522628]
[1751293034810,0.18637375,107630.0,107620.0,0.7156866]
[1751293035016,0.18637375,107630.0,107620.0,1.1531866]
[1751293035317,0.00059585,107630.0,107620.0,1.1531866]
[1751293036505,0.18637385,107630.0,107620.0,1.1531866]
[1751293037212,0.00059585,107630.0,107620.0,1.1531866]
[1751293037521,0.00049646,107640.0,107630.0,0.1857779]
[1751293037816,0.00049646,107640.0,107630.0,1.94967006]
[1751293038312,0.2786079,107660.0,107650.0,0.1857434]
[1751293038618,0.27674787,107660.0,107650.0,1.69039664]
[1751293038812,0.27674787,107660.0,107650.0,1.83599664]
[1751293039314,0.30022314,107660.0,107650.0,1.83599664]
[1751293039909,0.66102314,107660.0,107650.0,0.14659292]
[1751293040109,1.13148346,107660.0,107650.0,0.77227292]
[1751293040308,0.90832314,107660.0,107650.0,0.77227292]
[1751293040503,0.80022314,107660.0,107650.0,1.31881632]
[1751293041017,0.80022314,107660.0,107650.0,1.06769664]
[1751293041215,0.77674787,107660.0,107650.0,1.83905664]
[1751293041617,0.77674787,107660.0,107650.0,1.91495664]
[1751293041915,0.27674787,107660.0,107650.0,1.91495664]
[1751293042721,0.27674787,107660.0,107650.0,1.91595664]
[1751293043014,0.23031477,107660.0,107650.0,1.91595664]
[1751293044717,0.2321414,107670.0,107660.0,0.1857261]
[1751293044917,0.3249783,107680.0,107670.0,0.1857089]
[1751293045228,0.3485248,107680.0,107670.0,1.1035089]
[1751293045522,0.3485248,107680.0,107670.0,1.10400536]
[1751293046317,0.3249783,107680.0,107670.0,1.10400536]
[1751293046518,0.3269783,107680.0,107670.0,1.10400536]
[1751293046917,0.35050802,107680.0,107670.0,1.10400536]
[1751293047111,0.34850802,107680.0,107670.0,1.10400536]
[1751293047312,0.3249783,107680.0,107670.0,1.10400536]
[1751293049019,0.1857027,107680.0,107670.0,1.18090536]
[1751293049221,0.3974522,107690.0,107680.0,0.1856917]
[1751293049721,0.3974522,107690.0,107680.0,0.18618816]
[1751293049923,0.3974522,107690.0,107680.0,0.25708816]
[1751293050216,0.3259522,107690.0,107680.0,0.25708816]
[1751293050424,0.3259522,107690.0,107680.0,0.68858816]
[1751293050818,0.3259522,107690.0,107680.0,0.25708816]
[1751293050819,0.3992522,107690.0,107680.0,0.25708816]
[1751293051724,0.7600522,107690.0,107680.0,0.25708816]
[1751293051924,1.13051252,107690.0,107680.0,0.00049646]
[1751293052129,1.13051252,107690.0,107680.0,0.76793646]
[1751293052312,1.13051252,107690.0,107680.0,0.15849646]
[1751293052520,1.13051252,107690.0,107680.0,0.00049646]
[1751293052824,1.13051252,107690.0,107680.0,0.76801646]
[1751293053123,1.13051252,107690.0,107680.0,0.18618816]
[1751293053319,1.31624052,107690.0,107660.0,0.3608]
[1751293053620,0.546509,107670.0,107660.0,0.2321429]
[1751293053824,0.546509,107670.0,107660.0,0.9992629]
[1751293054025,0.546509,107670.0,107660.0,1.1490629]
[1751293054524,0.185709,107670.0,107660.0,1.51952322]
[1751293054729,0.185709,107670.0,107660.0,1.95402322]
[1751293056624,0.185709,107670.0,107660.0,2.0283506]
[1751293057532,0.185709,107670.0,107660.0,2.0293506]
[1751293059830,0.3249832,107680.0,107670.0,0.1857089]
[1751293060042,0.3249832,107680.0,107670.0,0.6891089]
[1751293061131,0.3259832,107680.0,107670.0,0.6891089]
[1751293061529,0.3259832,107680.0,107670.0,1.4519089]
[1751293061831,0.4028832,107680.0,107670.0,1.4517089]
[1751293062033,0.4028832,107680.0,107670.0,0.6163089]
[1751293062226,0.1857088,107670.0,107660.0,0.47302498]
[1751293062533,0.1857088,107670.0,107660.0,1.23868498]
[1751293062734,0.4048088,107670.0,107660.0,1.19221488]
[1751293063429,0.4048088,107670.0,107660.0,1.19197488]
[1751293063731,0.4048088,107670.0,107660.0,1.0722181]
[1751293066939,0.4048088,107670.0,107660.0,0.3101381]
[1751293067136,0.4048088,107670.0,107660.0,1.0707781]
[1751293067639,0.7656088,107670.0,107660.0,1.0707781]
[1751293067842,0.7656088,107670.0,107660.0,0.2331381]
[1751293068136,1.13606912,107670.0,107660.0,0.76128]
[1751293068343,0.7656088,107670.0,107660.0,0.76128]
[1751293068538,1.15988889,107670.0,107660.0,0.76128]
[1751293068937,1.15988889,107670.0,107660.0,0.15536]
[1751293069138,1.34564889,107670.0,107660.0,0.001]
[1751293069335,1.34564889,107670.0,107660.0,0.15536]
[1751293069836,1.84564889,107670.0,107660.0,0.15536]
[1751293070840,2.19564889,107670.0,107660.0,0.15536]
[1751293071239,1.94564889,107670.0,107660.0,0.15536]
[1751293071435,1.94564889,107670.0,107660.0,0.15585646]
[1751293072044,1.84564889,107670.0,107660.0,0.15585646]